fUSD/lending_fUSD_20241206
["ID","MTS","AMOUNT","RATE_DAILY","PERIOD"]
[344468279,1733505038356,-384.376003,9.188e-05,5]
[344468280,1733505038367,-60158.10760949,9.188e-05,5]
[344468281,1733505038376,-4196.42,9.188e-05,5]
[344468282,1733505038385,-200.0,9.191e-05,2]
[344468283,1733505038395,-2000.0,9.263e-05,2]
[344468284,1733505038403,-150.0,9.263e-05,2]
[344468286,1733505038413,-1000.0,9.327e-05,2]
[344468288,1733505038422,-679.48,9.343e-05,2]
[344468289,1733505038431,-2500.0,9.399e-05,2]
[344468290,1733505038440,-1048.0,9.4e-05,2]
[344468291,1733505038448,-1500.0,9.4e-05,3]
[344468292,1733505038457,-1268.45,9.404e-05,2]
[344468293,1733505038472,-752.75,9.41e-05,2]
[344468294,1733505038482,-637.43,9.41e-05,2]
[344468295,1733505038491,-728.24,9.41e-05,2]
[344468296,1733505038500,-5591.07748074,9.456e-05,2]
[344468300,1733505040215,-258.42251926,9.456e-05,2]
[344468301,1733505040224,-268.44816946,9.488e-05,2]
[344468302,1733505040236,-731.55183054,9.488e-05,2]
[344468303,1733505040245,-2060.592,9.488e-05,2]
[344468304,1733505040255,-183.903,9.488e-05,2]
[344468305,1733505040264,-2292.6838504,9.489e-05,2]
[344468306,1733505040327,-3865.69733091,9.489e-05,2]
[344468322,1733505043053,-4641.50743758,9.489e-05,2]
[344468324,1733505043064,-3871.66078111,9.489e-05,2]
[344468326,1733505043074,-2500.0,9.489e-05,2]
[344468327,1733505043084,-310.252,9.489e-05,2]
[344468328,1733505043093,-1695.632582,9.493e-05,2]
[344468329,1733505043429,-25788.367418,9.493e-05,2]
[344468330,1733505043444,-19792.036718,9.499e-05,2]
[344468331,1733505043456,-2974.48,9.499e-05,2]
[344468332,1733505043469,-3965.69654197,9.499e-05,2]
[344468333,1733505043478,-51.30345803,9.499e-05,2]
[344468334,1733505043639,-2994.87768339,9.499e-05,2]
[344468335,1733505043651,-550.3324831,9.499e-05,2]
[344468336,1733505043662,-482.31201654,9.499e-05,2]
[344468337,1733505043677,-4745.49464,9.499e-05,2]
[344468338,1733505043689,-808.1991387,9.499e-05,2]
[344468352,1733505046116,-364.16,8.957e-05,2]
[344468354,1733505046128,-86.5899995,9.498e-05,3]
[344468359,1733505143913,195.0,0.0002,120]
[344468360,1733505205983,250.0,0.00018,60]
[344468362,1733505854677,-350.57789782,0.000162,45]
[344468363,1733505855713,-997.79210218,0.00016658,30]
[344468397,1733506047988,48262.81893629,1e-06,7]
[344468432,1733506232514,-174.71,5.917e-05,2]
[344468433,1733506232523,-6393.32097408,6.9e-05,2]
[344468434,1733506232532,-230.72,7.221e-05,2]
[344468435,1733506232542,-159.29929669,7.221e-05,2]
[344468436,1733506232551,-150.0,7.295e-05,2]
[344468437,1733506232560,-168.45,7.298e-05,2]
[344468438,1733506232569,-300.0,7.318e-05,2]
[344468439,1733506232579,-687.8,7.319e-05,2]
[344468440,1733506232589,-2981.3,7.319e-05,2]
[344468441,1733506232598,-2143.86,7.319e-05,2]
[344468442,1733506232607,-1082.8,7.323e-05,2]
[344468443,1733506232616,-4222.0,7.333e-05,2]
[344468444,1733506232625,-624.07,7.351e-05,2]
[344468445,1733506232634,-871.70960807,7.351e-05,2]
[344468446,1733506232645,-1352.22039193,7.351e-05,2]
[344468447,1733506232655,-250.32,7.399e-05,2]
[344468448,1733506232664,-150.0,7.416e-05,2]
[344468449,1733506232673,-1008.84,7.416e-05,2]
[344468450,1733506232685,-11870.37,7.443e-05,2]
[344468451,1733506232693,-1852.42,7.457e-05,2]
[344468452,1733506232703,-250.0,7.478e-05,2]
[344468453,1733506232712,-230.72,7.488e-05,2]
[344468454,1733506232720,-150.0,7.559e-05,2]
[344468455,1733506232729,-22751.73,7.56e-05,2]
[344468456,1733506232738,-2000.0,7.625e-05,2]
[344468457,1733506232747,-250.0,7.643e-05,2]
[344468458,1733506232756,-200.0,7.677e-05,2]
[344468459,1733506232765,-1824.6681108,7.678e-05,2]
[344468460,1733506232774,-2432.89081441,7.679e-05,2]
[344468461,1733506232785,-1026.37581233,7.679e-05,2]
[344468462,1733506232794,-1026.37581233,7.679e-05,2]
[344468463,1733506232804,-769.78185925,7.679e-05,2]
[344468464,1733506232814,-2432.89081441,7.68e-05,2]
[344468465,1733506232823,-1026.37581233,7.68e-05,2]
[344468466,1733506232832,-200.0,7.681e-05,2]
[344468467,1733506232842,-2432.89081441,7.681e-05,2]
[344468468,1733506232852,-577.33639443,7.681e-05,2]
[344468469,1733506232863,-2432.89081441,7.681e-05,2]
[344468470,1733506232873,-200.0,7.681e-05,2]
[344468471,1733506232883,-1824.6681108,7.681e-05,2]
[344468472,1733506232893,-200.0,7.681e-05,2]
[344468473,1733506232903,-1368.5010831,7.681e-05,2]
[344468474,1733506232912,-200.0,7.682e-05,2]
[344468475,1733506232922,-200.0,7.682e-05,2]
[344468476,1733506232931,-577.33639443,7.682e-05,2]
[344468477,1733506232942,-769.78185925,7.683e-05,2]
[344468478,1733506232951,-200.0,7.684e-05,2]
[344468479,1733506232961,-577.33639443,7.685e-05,2]
[344468480,1733506232970,-1368.5010831,7.685e-05,2]
[344468481,1733506232979,-1824.6681108,7.686e-05,2]
[344468482,1733506232988,-200.0,7.687e-05,2]
[344468483,1733506232998,-200.0,7.687e-05,2]
[344468484,1733506233007,-577.33639443,7.687e-05,2]
[344468485,1733506233016,-63.59664892,7.687e-05,2]
[344468486,1733506233033,-1304.90443418,7.687e-05,2]
[344468487,1733506233042,-1824.6681108,7.687e-05,2]
[344468488,1733506233052,-200.0,7.688e-05,2]
[344468489,1733506233061,-2432.89081441,7.689e-05,2]
[344468490,1733506233071,-577.33639443,7.689e-05,2]
[344468491,1733506233081,-200.0,7.691e-05,2]
[344468492,1733506233090,-1368.5010831,7.692e-05,2]
[344468493,1733506233099,-200.0,7.692e-05,2]
[344468494,1733506233109,-1824.6681108,7.692e-05,2]
[344468495,1733506233119,-200.0,7.693e-05,2]
[344468496,1733506233129,-769.78185925,7.693e-05,2]
[344468497,1733506233138,-1368.5010831,7.693e-05,2]
[344468498,1733506233148,-1026.37581233,7.693e-05,2]
[344468499,1733506233157,-200.0,7.694e-05,2]
[344468500,1733506233167,-2432.89081441,7.694e-05,2]
[344468501,1733506233176,-1026.37581233,7.694e-05,2]
[344468502,1733506233188,-769.78185925,7.694e-05,2]
[344468503,1733506233197,-200.0,7.694e-05,2]
[344468504,1733506233207,-769.78185925,7.695e-05,2]
[344468505,1733506233216,-1368.5010831,7.695e-05,2]
[344468506,1733506233226,-1026.37581233,7.697e-05,2]
[344468507,1733506233236,-1824.6681108,7.697e-05,2]
[344468508,1733506233246,-577.33639443,7.699e-05,2]
[344468509,1733506233256,-200.0,7.699e-05,2]
[344468510,1733506233265,-769.78185925,7.699e-05,2]
[344468511,1733506233275,-166.76,7.702e-05,2]
[344468512,1733506233284,-250.0,7.713e-05,2]
[344468513,1733506233294,-230.72,7.755e-05,2]
[344468514,1733506233303,-220.49,7.788e-05,2]
[344468515,1733506233312,-823.29,7.831e-05,2]
[344468516,1733506233321,-2000.0,7.907e-05,2]
[344468517,1733506233330,-230.72,8.022e-05,2]
[344468518,1733506233340,-420.0,8.05e-05,2]
[344468519,1733506233349,-1248.04,8.058e-05,2]
[344468520,1733506233358,-1343.85,8.058e-05,2]
[344468521,1733506233368,-150.99,8.058e-05,2]
[344468522,1733506233377,-9999.99,8.058e-05,2]
[344468523,1733506233386,-4074.22,8.058e-05,2]
[344468524,1733506233395,-391.21,8.058e-05,2]
[344468525,1733506233404,-5138.17,8.058e-05,2]
[344468526,1733506233413,-8654.96,8.058e-05,2]
[344468527,1733506233422,-150.99,8.058e-05,2]
[344468528,1733506233432,-2999.99,8.058e-05,2]
[344468529,1733506233444,-299.99,8.058e-05,2]
[344468530,1733506233453,-999.99,8.058e-05,2]
[344468531,1733506233462,-326.64,8.058e-05,2]
[344468532,1733506233471,-9999.99,8.058e-05,2]
[344468533,1733506233481,-1106.77,8.058e-05,2]
[344468534,1733506233491,-6520.31,8.058e-05,2]
[344468535,1733506233503,-1436.75,8.058e-05,2]
[344468536,1733506233513,-499.99,8.058e-05,2]
[344468537,1733506233522,-364.16,8.135e-05,2]
[344468538,1733506233531,-2000.0,8.189e-05,2]
[344468539,1733506233541,-1000.0,8.219e-05,2]
[344468540,1733506233550,-166.78,8.219e-05,2]
[344468541,1733506233559,-8701.29,8.219e-05,2]
[344468542,1733506233569,-923.07,8.219e-05,2]
[344468543,1733506233578,-2759.4,8.219e-05,2]
[344468544,1733506233588,-5362.0,8.249e-05,2]
[344468545,1733506233597,-364.16,8.288e-05,2]
[344468546,1733506233606,-230.72,8.29e-05,2]
[344468547,1733506233615,-255.0,8.315e-05,2]
[344468548,1733506233625,-250.32,8.324e-05,2]
[344468549,1733506233634,-166.76,8.337e-05,2]
[344468550,1733506233643,-2000.0,8.471e-05,2]
[344468551,1733506233653,-364.16,8.578e-05,2]
[344468552,1733506233662,-696.42,8.581e-05,2]
[344468553,1733506233672,-594.0,8.59e-05,2]
[344468554,1733506233681,-364.16,8.678e-05,2]
[344468555,1733506233691,-364.16,8.688e-05,2]
[344468556,1733506233701,-200.0,8.74e-05,2]
[344468557,1733506233710,-500.0,8.74e-05,2]
[344468558,1733506233719,-2000.0,8.753e-05,2]
[344468559,1733506233729,-894.9306,8.764e-05,2]
[344468560,1733506233738,-734.9221,8.764e-05,2]
[344468561,1733506233747,-587.0,8.855e-05,2]
[344468562,1733506233756,-837.0,8.863e-05,2]
[344468563,1733506233766,-594.0,8.93e-05,2]
[344468564,1733506233776,-364.16,8.957e-05,2]
[344468565,1733506233785,-728.24,8.957e-05,2]
[344468566,1733506233795,-364.16,8.957e-05,2]
[344468567,1733506233804,-364.16,8.957e-05,2]
[344468568,1733506233813,-364.16,8.957e-05,2]
[344468569,1733506233823,-727.92,8.957e-05,2]
[344468570,1733506233833,-364.16,8.957e-05,2]
[344468571,1733506233842,-728.24,8.957e-05,2]
[344468572,1733506233851,-364.16,8.957e-05,2]
[344468573,1733506233860,-364.16,8.957e-05,2]
[344468574,1733506233869,-364.16,8.957e-05,2]
[344468575,1733506233878,-364.16,8.957e-05,2]
[344468576,1733506233888,-364.16,8.957e-05,2]
[344468577,1733506233897,-364.16,8.957e-05,2]
[344468578,1733506233907,-728.15,8.957e-05,2]
[344468579,1733506233916,-364.16,8.957e-05,2]
[344468580,1733506233925,-166.76,8.973e-05,2]
[344468581,1733506233935,-70570.32070685,8.999e-05,2]
[344468582,1733506233944,-1800.0,9e-05,3]
[344468583,1733506233953,-633.6,9.008e-05,2]
[344468584,1733506233963,-767.83,9.008e-05,2]
[344468585,1733506233972,-150.0,9.02e-05,2]
[344468586,1733506233981,-631.0,9.02e-05,2]
[344468587,1733506233990,-2004.0,9.02e-05,2]
[344468588,1733506234000,-1893.0,9.02e-05,2]
[344468589,1733506234009,-563.0,9.02e-05,2]
[344468590,1733506234018,-1252.0,9.02e-05,2]
[344468591,1733506234028,-816.0,9.02e-05,2]
[344468592,1733506234037,-3761.0,9.02e-05,2]
[344468593,1733506234046,-535.0,9.02e-05,2]
[344468594,1733506234056,-974.0,9.02e-05,2]
[344468595,1733506234065,-3529.0,9.02e-05,2]
[344468596,1733506234075,-338.749,9.02e-05,2]
[344468597,1733506234084,-1262.0,9.02e-05,2]
[344468598,1733506234093,-567.0,9.02e-05,2]
[344468599,1733506234103,-236.009,9.02e-05,2]
[344468600,1733506234112,-5964.0,9.02e-05,2]
[344468601,1733506234122,-633.0,9.02e-05,2]
[344468602,1733506234131,-640.442,9.11e-05,2]
[344468603,1733506234141,-152.0,9.147e-05,2]
[344468604,1733506234151,-307.94,9.17e-05,2]
[344468605,1733506234161,-1000.0,9.2e-05,2]
[344468606,1733506234170,-2500.0,9.2e-05,2]
[344468607,1733506234180,-3207.5,9.207e-05,2]
[344468608,1733506234191,-150.0,9.231e-05,2]
[344468609,1733506234201,-150.0,9.231e-05,2]
[344468610,1733506234211,-150.0,9.231e-05,2]
[344468611,1733506234221,-150.0,9.231e-05,2]
[344468612,1733506234230,-150.0,9.231e-05,2]
[344468613,1733506234240,-1000.0,9.247e-05,2]
[344468614,1733506234249,-182.115,9.247e-05,2]
[344468615,1733506234259,-250.32,9.249e-05,2]
[344468616,1733506234268,-594.0,9.28e-05,2]
[344468617,1733506234278,-1000.0,9.3e-05,2]
[344468618,1733506234287,-1000.0,9.3e-05,2]
[344468619,1733506234297,-1000.0,9.3e-05,2]
[344468620,1733506234306,-1000.0,9.3e-05,2]
[344468621,1733506234316,-1000.0,9.3e-05,2]
[344468622,1733506234325,-1000.0,9.3e-05,2]
[344468623,1733506234335,-730.0,9.3e-05,2]
[344468624,1733506234344,-2500.0,9.399e-05,2]
[344468625,1733506234353,-500.0,9.399e-05,2]
[344468626,1733506234363,-150.86651653,9.473e-05,2]
[344468627,1733506234372,-500.0,9.473e-05,2]
[344468628,1733506234382,-159.89872404,9.473e-05,2]
[344468629,1733506234391,-159.4004036,9.473e-05,2]
[344468630,1733506234400,-2605.9808,9.489e-05,2]
[344468631,1733506234409,-149993.44384144,9.49e-05,2]
[344468632,1733506234423,-161293.98057996,9.49e-05,2]
[344468633,1733506234437,-12820.29123132,9.49e-05,2]
[344468634,1733506234447,-299.16300769,9.493e-05,2]
[344468635,1733506234456,-500.0,9.493e-05,2]
[344468636,1733506234466,-500.0,9.493e-05,2]
[344468637,1733506234476,-1174.27556801,9.498e-05,3]
[344468638,1733506234485,-8096.15383132,9.499e-05,2]
[344468639,1733506234524,-3880.64116913,9.499e-05,2]
[344468640,1733506234535,-2097.0000045,9.499e-05,2]
[344468641,1733506234547,-16994.31541641,9.499e-05,2]
[344468642,1733506234558,-738.5,9.499e-05,2]
[344468643,1733506234569,-13536.00000155,9.499e-05,2]
[344468644,1733506238198,-466.139,9.02e-05,2]
[344468645,1733506238208,-775.69845801,9.499e-05,2]
[344468647,1733506238287,-17287.18696374,9.499e-05,2]
[344468648,1733506238312,-253.67399505,9.499e-05,2]
[344468649,1733506238384,-10680.0,9.499e-05,2]
[344468650,1733506238469,-10637.0570859,9.499e-05,2]
[344468651,1733506238481,-2832.96086252,9.499e-05,2]
[344468652,1733506238494,-7642.21174809,9.499e-05,2]
[344468653,1733506238509,-8315.34654671,9.499e-05,2]
[344468665,1733506240361,-250.0,7.271e-05,2]
[344468666,1733506240371,-1.3507713,9.499e-05,2]
[344468667,1733506240445,-1514.59443893,9.499e-05,2]
[344468668,1733506240457,-925.1256535,9.499e-05,2]
[344468670,1733506241438,-1491.3482272,9.499e-05,2]
[344468671,1733506241451,-282.84050001,9.499e-05,2]
[344468672,1733506241463,-556311.02726064,9.499e-05,2]
[344468673,1733506241534,-101760.1015,9.499e-05,2]
[344468692,1733506243256,-673.837,9.02e-05,2]
[344468694,1733506243265,-5191.51761729,9.499e-05,2]
[344468696,1733506243275,-59750.65666438,9.499e-05,2]
[344468698,1733506243287,-397911.93646985,9.499e-05,2]
[344468700,1733506243297,-118191.62299594,9.499e-05,2]
[344468706,1733506243341,-5231.64411263,9.499e-05,2]
[344468708,1733506243352,-4936.7861344,9.499e-05,2]
[344468710,1733506243362,-273.7,9.499e-05,2]
[344468717,1733506243513,-9740.2,9.499e-05,2]
[344468718,1733506243537,-563.24550783,9.499e-05,2]
[344468719,1733506243558,-27272.58438109,9.499e-05,2]
[344468720,1733506243578,-252.0617428,9.499e-05,2]
[344468722,1733506243589,-669.4519944,9.499e-05,2]
[344468723,1733506243599,-994.09,9.499e-05,2]
[344468724,1733506243610,-4015.05,9.499e-05,2]
[344468725,1733506243625,-436.00999,9.499e-05,2]
[344468739,1733506246151,-2003.0,9.02e-05,2]
[344468740,1733506246160,-140040.17966993,9.499e-05,2]
[344468745,1733506246234,-6749.082116,9.499e-05,2]
[344468746,1733506246245,-4028.14125205,9.499e-05,2]
[344468747,1733506246357,-265.858528,9.499e-05,2]
[344468748,1733506246368,-4023.2,9.499e-05,2]
[344468749,1733506246378,-4050.0,9.499e-05,2]
[344468750,1733506246389,-94757.93742309,9.499e-05,2]
[344468751,1733506246400,-4848.3864252,9.499e-05,2]
[344468752,1733506246448,-129799.64440062,9.499e-05,2]
[344468753,1733506246459,-18032.4959384,9.499e-05,2]
[344468766,1733506546709,1972.4,1e-05,2]
[344468767,1733506546732,5431.34283299,1e-05,2]
[344468769,1733506794304,-951.74,0.00016658,30]
[344468770,1733506794343,-951.74,0.00019242,30]
[344468771,1733506794369,-2100.0,0.0002,30]
[344468772,1733506794392,-5761.41049204,0.0002,30]
[344468776,1733507182909,651.05210218,0.00016658,30]
[344468796,1733507431451,-150.0,7.333e-05,2]
[344468797,1733507431461,-242.3,7.397e-05,2]
[344468798,1733507431471,-1900.0,7.4e-05,2]
[344468799,1733507431480,-300.0,7.499e-05,2]
[344468800,1733507431490,-158.095,7.499e-05,2]
[344468801,1733507431499,-3800.0,7.5e-05,2]
[344468802,1733507431509,-250.0,7.57e-05,2]
[344468803,1733507431518,-5700.0,7.6e-05,2]
[344468804,1733507431527,-238.09935454,7.677e-05,2]
[344468805,1733507431536,-254.96188776,7.677e-05,2]
[344468806,1733507431545,-200.0,7.677e-05,2]
[344468807,1733507431554,-200.0,7.678e-05,2]
[344468808,1733507431563,-200.0,7.678e-05,2]
[344468809,1733507431573,-200.0,7.678e-05,2]
[344468810,1733507431582,-200.0,7.678e-05,2]
[344468811,1733507431591,-317.46580605,7.678e-05,2]
[344468812,1733507431601,-200.0,7.678e-05,2]
[344468813,1733507431610,-200.0,7.678e-05,2]
[344468814,1733507431618,-200.0,7.678e-05,2]
[344468815,1733507431628,-4958.13235666,7.678e-05,2]
[344468816,1733507431637,-4958.13235666,7.678e-05,2]
[344468817,1733507431646,-200.0,7.679e-05,2]
[344468818,1733507431655,-1568.78406597,7.679e-05,2]
[344468819,1733507431664,-423.2877414,7.679e-05,2]
[344468820,1733507431673,-3718.59926749,7.679e-05,2]
[344468821,1733507431682,-423.2877414,7.679e-05,2]
[344468822,1733507431691,-200.0,7.679e-05,2]
[344468823,1733507431700,-254.96188776,7.679e-05,2]
[344468824,1733507431710,-423.2877414,7.679e-05,2]
[344468825,1733507431719,-200.0,7.68e-05,2]
[344468826,1733507431728,-236.8296217,7.68e-05,2]
[344468827,1733507431737,-453.26557824,7.68e-05,2]
[344468828,1733507431746,-307.40534057,7.68e-05,2]
[344468829,1733507431757,-805.80547243,7.68e-05,2]
[344468830,1733507431767,-317.46580605,7.68e-05,2]
[344468831,1733507431778,-200.0,7.68e-05,2]
[344468832,1733507431787,-2091.71208796,7.68e-05,2]
[344468833,1733507431796,-236.8296217,7.68e-05,2]
[344468834,1733507431805,-236.8296217,7.68e-05,2]
[344468835,1733507431815,-200.0,7.68e-05,2]
[344468836,1733507431824,-200.0,7.68e-05,2]
[344468837,1733507431834,-200.0,7.681e-05,2]
[344468838,1733507431843,-200.0,7.681e-05,2]
[344468839,1733507431852,-317.46580605,7.681e-05,2]
[344468840,1733507431861,-200.0,7.681e-05,2]
[344468841,1733507431870,-6610.84314221,7.681e-05,2]
[344468842,1733507431880,-200.0,7.681e-05,2]
[344468843,1733507431894,-805.80547243,7.681e-05,2]
[344468844,1733507431903,-200.0,7.681e-05,2]
[344468845,1733507431912,-200.0,7.681e-05,2]
[344468846,1733507431922,-200.0,7.681e-05,2]
[344468847,1733507431932,-200.0,7.682e-05,2]
[344468848,1733507431941,-453.26557824,7.682e-05,2]
[344468849,1733507431950,-339.94918368,7.682e-05,2]
[344468850,1733507431959,-2091.71208796,7.682e-05,2]
[344468851,1733507431970,-200.0,7.682e-05,2]
[344468852,1733507431980,-200.0,7.682e-05,2]
[344468853,1733507431990,-200.0,7.683e-05,2]
[344468854,1733507431999,-339.94918368,7.683e-05,2]
[344468855,1733507432008,-254.96188776,7.683e-05,2]
[344468856,1733507432018,-200.0,7.684e-05,2]
[344468857,1733507432029,-6610.84314221,7.684e-05,2]
[344468858,1733507432038,-2091.71208796,7.684e-05,2]
[344468859,1733507432047,-200.0,7.684e-05,2]
[344468860,1733507432057,-339.94918368,7.684e-05,2]
[344468861,1733507432066,-1074.40729657,7.684e-05,2]
[344468862,1733507432075,-200.0,7.684e-05,2]
[344468863,1733507432085,-200.0,7.684e-05,2]
[344468864,1733507432095,-2091.71208796,7.684e-05,2]
[344468865,1733507432104,-200.0,7.685e-05,2]
[344468866,1733507432114,-1568.78406597,7.685e-05,2]
[344468867,1733507432123,-236.8296217,7.685e-05,2]
[344468868,1733507432132,-6610.84314221,7.685e-05,2]
[344468869,1733507432141,-200.0,7.686e-05,2]
[344468870,1733507432154,-200.0,7.686e-05,2]
[344468871,1733507432163,-200.0,7.686e-05,2]
[344468872,1733507432172,-317.46580605,7.686e-05,2]
[344468873,1733507432182,-4958.13235666,7.686e-05,2]
[344468874,1733507432191,-2788.94945062,7.686e-05,2]
[344468875,1733507432201,-200.0,7.686e-05,2]
[344468876,1733507432210,-200.0,7.686e-05,2]
[344468877,1733507432219,-2091.71208796,7.686e-05,2]
[344468878,1733507432229,-200.0,7.686e-05,2]
[344468879,1733507432239,-200.0,7.686e-05,2]
[344468880,1733507432248,-200.0,7.686e-05,2]
[344468881,1733507432257,-317.46580605,7.687e-05,2]
[344468882,1733507432266,-805.80547243,7.687e-05,2]
[344468883,1733507432278,-200.0,7.687e-05,2]
[344468884,1733507432287,-1074.40729657,7.687e-05,2]
[344468885,1733507432296,-317.46580605,7.687e-05,2]
[344468886,1733507432305,-200.0,7.687e-05,2]
[344468887,1733507432315,-3718.59926749,7.687e-05,2]
[344468888,1733507432324,-238.09935454,7.688e-05,2]
[344468889,1733507432333,-200.0,7.688e-05,2]
[344468890,1733507432343,-604.35410432,7.688e-05,2]
[344468891,1733507432352,-604.35410432,7.688e-05,2]
[344468892,1733507432361,-339.94918368,7.688e-05,2]
[344468893,1733507432370,-200.0,7.688e-05,2]
[344468894,1733507432379,-200.0,7.689e-05,2]
[344468895,1733507432388,-200.0,7.689e-05,2]
[344468896,1733507432397,-339.94918368,7.689e-05,2]
[344468897,1733507432406,-6610.84314221,7.689e-05,2]
[344468898,1733507432417,-3718.59926749,7.689e-05,2]
[344468899,1733507432426,-3718.59926749,7.689e-05,2]
[344468900,1733507432435,-2788.94945062,7.689e-05,2]
[344468901,1733507432444,-200.0,7.69e-05,2]
[344468902,1733507432455,-254.96188776,7.69e-05,2]
[344468903,1733507432464,-805.80547243,7.69e-05,2]
[344468904,1733507432474,-453.26557824,7.69e-05,2]
[344468905,1733507432483,-238.09935454,7.69e-05,2]
[344468906,1733507432492,-2788.94945062,7.69e-05,2]
[344468907,1733507432501,-307.40534057,7.69e-05,2]
[344468908,1733507432510,-3718.59926749,7.69e-05,2]
[344468909,1733507432522,-604.35410432,7.691e-05,2]
[344468910,1733507432531,-200.0,7.691e-05,2]
[344468911,1733507432541,-200.0,7.691e-05,2]
[344468912,1733507432550,-6610.84314221,7.691e-05,2]
[344468913,1733507432559,-236.8296217,7.691e-05,2]
[344468914,1733507432568,-453.26557824,7.691e-05,2]
[344468915,1733507432578,-1568.78406597,7.691e-05,2]
[344468916,1733507432587,-792.12,7.691e-05,2]
[344468917,1733507432596,-805.80547243,7.692e-05,2]
[344468918,1733507432605,-2788.94945062,7.692e-05,2]
[344468919,1733507432615,-1074.40729657,7.692e-05,2]
[344468920,1733507432624,-200.0,7.692e-05,2]
[344468921,1733507432633,-339.94918368,7.692e-05,2]
[344468922,1733507432642,-200.0,7.692e-05,2]
[344468923,1733507432651,-238.09935454,7.693e-05,2]
[344468924,1733507432661,-200.0,7.693e-05,2]
[344468925,1733507432670,-805.80547243,7.693e-05,2]
[344468926,1733507432678,-200.0,7.693e-05,2]
[344468927,1733507432688,-200.0,7.693e-05,2]
[344468928,1733507432697,-200.0,7.693e-05,2]
[344468929,1733507432706,-6610.84314221,7.693e-05,2]
[344468930,1733507432716,-2091.71208796,7.693e-05,2]
[344468931,1733507432725,-1074.40729657,7.693e-05,2]
[344468932,1733507432734,-200.0,7.693e-05,2]
[344468933,1733507432744,-1568.78406597,7.693e-05,2]
[344468934,1733507432753,-236.8296217,7.694e-05,2]
[344468935,1733507432762,-200.0,7.694e-05,2]
[344468936,1733507432776,-4958.13235666,7.694e-05,2]
[344468937,1733507432785,-3718.59926749,7.694e-05,2]
[344468938,1733507432795,-423.2877414,7.694e-05,2]
[344468939,1733507432805,-200.0,7.694e-05,2]
[344468940,1733507432814,-200.0,7.694e-05,2]
[344468941,1733507432823,-200.0,7.695e-05,2]
[344468942,1733507432831,-1074.40729657,7.695e-05,2]
[344468943,1733507432841,-4958.13235666,7.695e-05,2]
[344468944,1733507432850,-1568.78406597,7.695e-05,2]
[344468945,1733507432859,-200.0,7.695e-05,2]
[344468946,1733507432868,-200.0,7.696e-05,2]
[344468947,1733507432878,-2788.94945062,7.696e-05,2]
[344468948,1733507432887,-307.40534057,7.696e-05,2]
[344468949,1733507432899,-604.35410432,7.696e-05,2]
[344468950,1733507432908,-200.0,7.696e-05,2]
[344468951,1733507432917,-254.96188776,7.697e-05,2]
[344468952,1733507432926,-604.35410432,7.697e-05,2]
[344468953,1733507432936,-200.0,7.697e-05,2]
[344468954,1733507432945,-200.0,7.697e-05,2]
[344468955,1733507432953,-423.2877414,7.697e-05,2]
[344468956,1733507432962,-200.0,7.697e-05,2]
[344468957,1733507432974,-200.0,7.697e-05,2]
[344468958,1733507432984,-453.26557824,7.697e-05,2]
[344468959,1733507432994,-200.0,7.698e-05,2]
[344468960,1733507433003,-1074.40729657,7.698e-05,2]
[344468961,1733507433013,-200.0,7.698e-05,2]
[344468962,1733507433026,-2788.94945062,7.698e-05,2]
[344468963,1733507433036,-200.0,7.698e-05,2]
[344468964,1733507433045,-200.0,7.698e-05,2]
[344468965,1733507433055,-307.40534057,7.698e-05,2]
[344468966,1733507433065,-453.26557824,7.698e-05,2]
[344468967,1733507433075,-200.0,7.699e-05,2]
[344468968,1733507433383,-307.40534057,7.699e-05,2]
[344468969,1733507433392,-1568.78406597,7.699e-05,2]
[344468970,1733507433402,-200.0,7.699e-05,2]
[344468971,1733507433411,-4958.13235666,7.699e-05,2]
[344468972,1733507433421,-604.35410432,7.699e-05,2]
[344468973,1733507433431,-423.2877414,7.699e-05,2]
[344468974,1733507433440,-238.09935454,7.699e-05,2]
[344468975,1733507433450,-200.0,7.699e-05,2]
[344468976,1733507433459,-307.40534057,7.699e-05,2]
[344468977,1733507433468,-238.09935454,7.699e-05,2]
[344468978,1733507433477,-254.96188776,7.699e-05,2]
[344468979,1733507433486,-200.0,7.699e-05,2]
[344468980,1733507433495,-200.0,7.7e-05,2]
[344468981,1733507433505,-200.0,7.7e-05,2]
[344468982,1733507433514,-7600.0,7.7e-05,2]
[344468983,1733507433525,-9500.0,7.8e-05,2]
[344468984,1733507433535,-1900.0,7.9e-05,2]
[344468985,1733507433544,-1733.66,7.975e-05,2]
[344468986,1733507433553,-168.45,7.982e-05,2]
[344468987,1733507433562,-1900.0,8e-05,2]